[Event "GrandPrix_30.05"]
[Site "Chess.com"]
[Date "2020.05.30"]
[Round "1"]
[White "AvitalBor"]
[Black "BakaPG"]
[Result "0-1"]
[WhiteElo "2624"]
[BlackElo "2274"]
[TimeControl "600+2"]
[EndTime "8:23:21 PDT"]
[Termination "BakaPG won by checkmate"]

1. e4 {[%clk 0:10:01.9]} 1... e6 {[%clk 0:09:59.7]} 2. d4 {[%clk 0:10:02.2]}
2... d5 {[%clk 0:10:00.4]} 3. Nd2 {[%clk 0:10:03.4]} 3... a6 {[%clk 0:09:59.5]}
4. Ngf3 {[%clk 0:10:02.1]} 4... Nf6 {[%clk 0:09:59.1]} 5. Bd3 {[%clk 0:10:00.5]}
5... c5 {[%clk 0:09:58.8]} 6. exd5 {[%clk 0:09:29.5]} 6... exd5 {[%clk
0:09:57.3]} 7. O-O {[%clk 0:09:29.7]} 7... c4 {[%clk 0:09:57.5]} 8. Re1+ {[%clk
0:09:26.8]} 8... Be7 {[%clk 0:09:57.4]} 9. Bf1 {[%clk 0:09:27.9]} 9... Bg4
{[%clk 0:09:23.3]} 10. h3 {[%clk 0:09:17.3]} 10... Bh5 {[%clk 0:09:22.9]} 11. b3
{[%clk 0:09:11]} 11... cxb3 {[%clk 0:09:19.5]} 12. axb3 {[%clk 0:09:09]} 12...
O-O {[%clk 0:09:17.2]} 13. c4 {[%clk 0:08:54.1]} 13... Nc6 {[%clk 0:09:13.7]}
14. Bb2 {[%clk 0:08:55.1]} 14... Bb4 {[%clk 0:09:07.1]} 15. Be2 {[%clk
0:08:38.7]} 15... Re8 {[%clk 0:08:49.7]} 16. Ne5 {[%clk 0:08:22.3]} 16... Bg6
{[%clk 0:08:20.7]} 17. Nxg6 {[%clk 0:06:33.3]} 17... hxg6 {[%clk 0:08:15.7]} 18.
Rf1 {[%clk 0:06:34.1]} 18... Qd7 {[%clk 0:06:35.7]} 19. Nf3 {[%clk 0:05:58.9]}
19... Bd6 {[%clk 0:06:16]} 20. cxd5 {[%clk 0:04:33]} 20... Nxd5 {[%clk
0:06:11.9]} 21. Bc4 {[%clk 0:04:33.7]} 21... Ncb4 {[%clk 0:05:34.3]} 22. Ne5
{[%clk 0:04:24.3]} 22... Bxe5 {[%clk 0:05:33.2]} 23. dxe5 {[%clk 0:04:26.2]}
23... b5 {[%clk 0:05:20.8]} 24. Be2 {[%clk 0:04:27]} 24... Rad8 {[%clk
0:05:16.7]} 25. Bg4 {[%clk 0:04:17.5]} 25... Qe7 {[%clk 0:05:00.2]} 26. Qf3
{[%clk 0:04:12.7]} 26... Nc6 {[%clk 0:04:29.8]} 27. Rfe1 {[%clk 0:03:14.9]}
27... Ndb4 {[%clk 0:04:18.4]} 28. Rad1 {[%clk 0:02:34.5]} 28... Rxd1 {[%clk
0:04:14.2]} 29. Qxd1 {[%clk 0:02:34.5]} 29... Rd8 {[%clk 0:04:11.9]} 30. Qf3
{[%clk 0:01:54]} 30... Nd3 {[%clk 0:04:06.2]} 31. Re3 {[%clk 0:01:34.7]} 31...
Ncb4 {[%clk 0:01:53.3]} 32. Bc3 {[%clk 0:01:33.4]} 32... Qc7 {[%clk 0:01:45.5]}
33. Bd2 {[%clk 0:00:25.1]} 33... a5 {[%clk 0:01:35.5]} 34. h4 {[%clk 0:00:11.8]}
34... Nxe5 {[%clk 0:01:28.9]} 35. Rxe5 {[%clk 0:00:12.8]} 35... Qxe5 {[%clk
0:01:27.8]} 36. Bc3 {[%clk 0:00:12.5]} 36... Qd5 {[%clk 0:01:21.6]} 37. Qe3
{[%clk 0:00:08.5]} 37... Nc2 {[%clk 0:01:07]} 38. Qe7 {[%clk 0:00:07.8]} 38...
b4 {[%clk 0:00:53.8]} 39. Bb2 {[%clk 0:00:08.4]} 39... Nd4 {[%clk 0:00:52.6]}
40. h5 {[%clk 0:00:08.5]} 40... Nc6 {[%clk 0:00:42.6]} 41. Qc7 {[%clk
0:00:07.9]} 41... Qd6 {[%clk 0:00:35.2]} 42. Qb7 {[%clk 0:00:08.8]} 42... Ne5
{[%clk 0:00:30.3]} 43. hxg6 {[%clk 0:00:09.8]} 43... Nxg6 {[%clk 0:00:25.5]} 44.
Be2 {[%clk 0:00:10.5]} 44... Qd5 {[%clk 0:00:22]} 45. Qc7 {[%clk 0:00:10.9]}
45... Re8 {[%clk 0:00:17.7]} 46. Bc4 {[%clk 0:00:11.2]} 46... Re1+ {[%clk
0:00:17.3]} 47. Kh2 {[%clk 0:00:12.1]} 47... Qh5+ {[%clk 0:00:16.1]} 48. Kg3
{[%clk 0:00:13.5]} 48... Qg5+ {[%clk 0:00:16.5]} 49. Kf3 {[%clk 0:00:12.9]}
49... Nh4# {[%clk 0:00:16.7]} 0-1

[Event "GrandPrix_30.05"]
[Site "Chess.com"]
[Date "2020.05.30"]
[Round "1"]
[White "viktorskliarov"]
[Black "DenLaz"]
[Result "1/2-1/2"]
[WhiteElo "2216"]
[BlackElo "2665"]
[TimeControl "600+2"]
[EndTime "8:23:23 PDT"]
[Termination "Game drawn by repetition"]

1. e4 {[%clk 0:09:54.7]} 1... e5 {[%clk 0:09:58.1]} 2. Nc3 {[%clk 0:09:54.7]}
2... Nf6 {[%clk 0:09:55.2]} 3. Bc4 {[%clk 0:09:55.2]} 3... Bc5 {[%clk
0:09:54.7]} 4. d3 {[%clk 0:09:55]} 4... d6 {[%clk 0:09:52.4]} 5. h3 {[%clk
0:09:54.8]} 5... Nc6 {[%clk 0:09:43.6]} 6. a3 {[%clk 0:09:53.5]} 6... a6 {[%clk
0:09:41.7]} 7. Nge2 {[%clk 0:09:53.9]} 7... Be6 {[%clk 0:09:30.8]} 8. Nd5 {[%clk
0:09:54.6]} 8... h6 {[%clk 0:09:01.1]} 9. Ng3 {[%clk 0:09:42.9]} 9... Bxd5
{[%clk 0:07:36.7]} 10. exd5 {[%clk 0:09:42.5]} 10... Ne7 {[%clk 0:07:37.8]} 11.
Qf3 {[%clk 0:09:42]} 11... Qd7 {[%clk 0:07:16.7]} 12. O-O {[%clk 0:09:27]} 12...
Nh7 {[%clk 0:06:24.8]} 13. b4 {[%clk 0:08:26.5]} 13... Bd4 {[%clk 0:06:17.4]}
14. Rb1 {[%clk 0:08:24.7]} 14... O-O {[%clk 0:06:04.1]} 15. c3 {[%clk
0:07:30.9]} 15... Bb6 {[%clk 0:05:51.5]} 16. Be3 {[%clk 0:06:24.7]} 16... f5
{[%clk 0:05:34]} 17. Bxb6 {[%clk 0:04:28]} 17... cxb6 {[%clk 0:05:35.9]} 18. Bb3
{[%clk 0:04:29.3]} 18... Ng5 {[%clk 0:05:05.7]} 19. Qh5 {[%clk 0:04:15.9]} 19...
Kh7 {[%clk 0:03:23.4]} 20. f4 {[%clk 0:03:44.5]} 20... exf4 {[%clk 0:03:21.3]}
21. Rxf4 {[%clk 0:03:44.7]} 21... Ng6 {[%clk 0:03:18.5]} 22. Rff1 {[%clk
0:03:08.2]} 22... f4 {[%clk 0:02:53.7]} 23. Bc2 {[%clk 0:01:59.1]} 23... Ne7
{[%clk 0:02:31.6]} 24. d4+ {[%clk 0:01:13.1]} 24... g6 {[%clk 0:02:26.7]} 25.
Ne4 {[%clk 0:01:10.9]} 25... Kg7 {[%clk 0:02:05.4]} 26. Qh4 {[%clk 0:00:52.3]}
26... Nxe4 {[%clk 0:01:45]} 27. Bxe4 {[%clk 0:00:52.7]} 27... g5 {[%clk
0:01:46.3]} 28. Qh5 {[%clk 0:00:48.7]} 28... Rac8 {[%clk 0:01:37]} 29. Rf3
{[%clk 0:00:44.5]} 29... Qe8 {[%clk 0:01:28.6]} 30. Qg4 {[%clk 0:00:38.6]} 30...
Ng8 {[%clk 0:01:29.1]} 31. Re1 {[%clk 0:00:23.9]} 31... Nf6 {[%clk 0:01:02.7]}
32. Qe6 {[%clk 0:00:24.4]} 32... Qd8 {[%clk 0:00:40.8]} 33. h4 {[%clk
0:00:13.8]} 33... Rc7 {[%clk 0:00:17.1]} 34. hxg5 {[%clk 0:00:13.9]} 34... hxg5
{[%clk 0:00:19]} 35. Rh3 {[%clk 0:00:13.5]} 35... Rh8 {[%clk 0:00:14.1]} 36.
Rxh8 {[%clk 0:00:09.8]} 36... Kxh8 {[%clk 0:00:16]} 37. Kf2 {[%clk 0:00:08.4]}
37... Kg7 {[%clk 0:00:14.2]} 38. Qf5 {[%clk 0:00:08.2]} 38... Nxe4+ {[%clk
0:00:14.3]} 39. Rxe4 {[%clk 0:00:09.7]} 39... Rf7 {[%clk 0:00:15]} 40. Qe6
{[%clk 0:00:07.8]} 40... Qf6 {[%clk 0:00:13.3]} 41. Qxf6+ {[%clk 0:00:08.1]}
41... Rxf6 {[%clk 0:00:09.2]} 42. Re7+ {[%clk 0:00:09.1]} 42... Rf7 {[%clk
0:00:10.3]} 43. Re6 {[%clk 0:00:08.8]} 43... Rf6 {[%clk 0:00:10.1]} 44. Re7+
{[%clk 0:00:09.7]} 44... Rf7 {[%clk 0:00:10.4]} 45. Re6 {[%clk 0:00:11]} 45...
Rf6 {[%clk 0:00:07.3]} 46. Re7+ {[%clk 0:00:08.3]} 1/2-1/2

[Event "GrandPrix_30.05"]
[Site "Chess.com"]
[Date "2020.05.30"]
[Round "1"]
[White "KJakubowski"]
[Black "PeshkaTheGreat"]
[Result "1-0"]
[WhiteElo "2459"]
[BlackElo "2106"]
[TimeControl "600+2"]
[EndTime "8:23:32 PDT"]
[Termination "KJakubowski won by checkmate"]

1. e4 {[%clk 0:09:58.3]} 1... c5 {[%clk 0:10:00.3]} 2. Nf3 {[%clk 0:09:58.4]}
2... d6 {[%clk 0:10:00.5]} 3. d4 {[%clk 0:09:59.2]} 3... cxd4 {[%clk 0:10:01.2]}
4. Nxd4 {[%clk 0:10:00.1]} 4... Nf6 {[%clk 0:10:00.6]} 5. Nc3 {[%clk 0:10:01.6]}
5... g6 {[%clk 0:09:57.7]} 6. Be2 {[%clk 0:10:02.2]} 6... Bg7 {[%clk 0:09:57.7]}
7. O-O {[%clk 0:10:02.7]} 7... O-O {[%clk 0:09:58.3]} 8. Be3 {[%clk 0:10:01.9]}
8... Nc6 {[%clk 0:09:57.9]} 9. Nb3 {[%clk 0:10:02.4]} 9... Bd7 {[%clk
0:09:41.5]} 10. Qd2 {[%clk 0:10:00.5]} 10... Ng4 {[%clk 0:09:41.8]} 11. Bxg4
{[%clk 0:10:01.3]} 11... Bxg4 {[%clk 0:09:43.7]} 12. Bh6 {[%clk 0:10:02.3]}
12... Ne5 {[%clk 0:08:45.9]} 13. Bxg7 {[%clk 0:09:45.8]} 13... Kxg7 {[%clk
0:08:45.4]} 14. Qd4 {[%clk 0:08:55.6]} 14... Kg8 {[%clk 0:07:26.2]} 15. f4
{[%clk 0:08:52.7]} 15... Nc6 {[%clk 0:07:19.4]} 16. Qe3 {[%clk 0:08:38.1]} 16...
Be6 {[%clk 0:05:55.2]} 17. Rad1 {[%clk 0:07:26.3]} 17... Qb6 {[%clk 0:05:51.5]}
18. Qxb6 {[%clk 0:07:20.9]} 18... axb6 {[%clk 0:05:53.4]} 19. a3 {[%clk
0:07:01.4]} 19... Rfc8 {[%clk 0:05:34.2]} 20. Nd4 {[%clk 0:06:26.7]} 20... Nxd4
{[%clk 0:05:26]} 21. Rxd4 {[%clk 0:06:26.4]} 21... Rc4 {[%clk 0:04:59]} 22. Rxc4
{[%clk 0:06:06.5]} 22... Bxc4 {[%clk 0:04:58.5]} 23. Rd1 {[%clk 0:06:05.1]}
23... Be6 {[%clk 0:04:30.1]} 24. Rd4 {[%clk 0:05:55.7]} 24... Rc8 {[%clk
0:04:09.8]} 25. Kf2 {[%clk 0:05:51.8]} 25... Rc4 {[%clk 0:04:01.3]} 26. Ke3
{[%clk 0:05:37.3]} 26... Kf8 {[%clk 0:03:48.1]} 27. Rxc4 {[%clk 0:05:22.7]}
27... Bxc4 {[%clk 0:03:48.3]} 28. Kd4 {[%clk 0:05:16.9]} 28... b5 {[%clk
0:03:32.5]} 29. g3 {[%clk 0:04:56.6]} 29... f6 {[%clk 0:03:21.8]} 30. e5 {[%clk
0:04:57.2]} 30... fxe5+ {[%clk 0:02:28.9]} 31. fxe5 {[%clk 0:04:56.8]} 31... Kf7
{[%clk 0:01:44.8]} 32. exd6 {[%clk 0:04:46.4]} 32... exd6 {[%clk 0:01:45.2]} 33.
a4 {[%clk 0:04:45.7]} 33... Ke6 {[%clk 0:01:32.5]} 34. Nxb5 {[%clk 0:04:27.4]}
34... Be2 {[%clk 0:01:24.2]} 35. c4 {[%clk 0:04:22.9]} 35... b6 {[%clk
0:01:14.1]} 36. b4 {[%clk 0:04:02.9]} 36... Kd7 {[%clk 0:00:50.5]} 37. Nc3
{[%clk 0:03:59]} 37... Bf3 {[%clk 0:00:49.4]} 38. Nd5 {[%clk 0:03:54.6]} 38...
Kc6 {[%clk 0:00:45.1]} 39. h4 {[%clk 0:03:50.7]} 39... h6 {[%clk 0:00:39.4]} 40.
Ne7+ {[%clk 0:03:45.8]} 40... Kd7 {[%clk 0:00:39.2]} 41. Nxg6 {[%clk 0:03:47.7]}
41... Bd1 {[%clk 0:00:40]} 42. a5 {[%clk 0:03:47.9]} 42... bxa5 {[%clk
0:00:41.9]} 43. bxa5 {[%clk 0:03:49.5]} 43... Kc6 {[%clk 0:00:43.7]} 44. Ne7+
{[%clk 0:03:46.9]} 44... Kc7 {[%clk 0:00:39.7]} 45. Nf5 {[%clk 0:03:48.8]} 45...
h5 {[%clk 0:00:40.6]} 46. c5 {[%clk 0:03:13.7]} 46... dxc5+ {[%clk 0:00:40.9]}
47. Kxc5 {[%clk 0:03:15.5]} 47... Kb7 {[%clk 0:00:41.8]} 48. Kd5 {[%clk
0:03:06.8]} 48... Ka6 {[%clk 0:00:41.6]} 49. Ke5 {[%clk 0:03:08.4]} 49... Kxa5
{[%clk 0:00:43.1]} 50. Kf4 {[%clk 0:03:10]} 50... Kb5 {[%clk 0:00:43.5]} 51. Kg5
{[%clk 0:03:11.4]} 51... Kc5 {[%clk 0:00:44.7]} 52. Ng7 {[%clk 0:03:13]} 52...
Kd5 {[%clk 0:00:45.4]} 53. Nxh5 {[%clk 0:03:14.4]} 53... Ke6 {[%clk 0:00:46.4]}
54. Nf4+ {[%clk 0:03:07.1]} 54... Kf7 {[%clk 0:00:47]} 55. g4 {[%clk 0:03:08.3]}
55... Kg7 {[%clk 0:00:44.6]} 56. Ne6+ {[%clk 0:03:08.1]} 56... Kh7 {[%clk
0:00:44.7]} 57. Nd4 {[%clk 0:03:10]} 57... Kg7 {[%clk 0:00:43.9]} 58. h5 {[%clk
0:03:10.6]} 58... Kh7 {[%clk 0:00:44.5]} 59. Nf5 {[%clk 0:03:07.4]} 59... Be2
{[%clk 0:00:43.3]} 60. Ng3 {[%clk 0:02:53]} 60... Bd1 {[%clk 0:00:43]} 61. Kf5
{[%clk 0:02:52.3]} 61... Kg7 {[%clk 0:00:17.8]} 62. g5 {[%clk 0:02:50.4]} 62...
Bc2+ {[%clk 0:00:18.6]} 63. Kf4 {[%clk 0:02:52]} 63... Bd1 {[%clk 0:00:19.5]}
64. Nf5+ {[%clk 0:02:42.5]} 64... Kh8 {[%clk 0:00:15.8]} 65. h6 {[%clk
0:02:33.6]} 65... Kh7 {[%clk 0:00:15]} 66. Ne7 {[%clk 0:02:33]} 66... Bc2 {[%clk
0:00:13.9]} 67. Ke5 {[%clk 0:02:33.8]} 67... Bb1 {[%clk 0:00:14.9]} 68. Kf6
{[%clk 0:02:35.7]} 68... Bc2 {[%clk 0:00:16.5]} 69. Nd5 {[%clk 0:02:30.3]} 69...
Bb1 {[%clk 0:00:15.7]} 70. Ne3 {[%clk 0:02:30.8]} 70... Be4 {[%clk 0:00:15.1]}
71. Nf5 {[%clk 0:02:30.5]} 71... Bd3 {[%clk 0:00:05.5]} 72. g6+ {[%clk
0:02:31.1]} 72... Kh8 {[%clk 0:00:06.8]} 73. Nd6 {[%clk 0:02:10.1]} 73... Kg8
{[%clk 0:00:04]} 74. h7+ {[%clk 0:02:10.5]} 74... Kh8 {[%clk 0:00:05.1]} 75.
Nf7# {[%clk 0:02:11.4]} 1-0

[Event "GrandPrix_30.05"]
[Site "Chess.com"]
[Date "2020.05.30"]
[Round "1"]
[White "Pultis"]
[Black "Vesper2018"]
[Result "1/2-1/2"]
[WhiteElo "2249"]
[BlackElo "1947"]
[TimeControl "600+2"]
[EndTime "8:23:32 PDT"]
[Termination "Game drawn by repetition"]

1. d4 {[%clk 0:09:59.8]} 1... Nf6 {[%clk 0:09:33.4]} 2. c4 {[%clk 0:09:59.2]}
2... g6 {[%clk 0:09:24.5]} 3. g3 {[%clk 0:09:53.1]} 3... Bg7 {[%clk 0:09:25.2]}
4. Bg2 {[%clk 0:09:54.5]} 4... O-O {[%clk 0:09:24.2]} 5. Nf3 {[%clk 0:09:55.9]}
5... d6 {[%clk 0:09:24.6]} 6. O-O {[%clk 0:09:57.3]} 6... Nc6 {[%clk 0:09:25.4]}
7. Nc3 {[%clk 0:09:58]} 7... a6 {[%clk 0:09:22.6]} 8. b3 {[%clk 0:09:01.8]} 8...
Rb8 {[%clk 0:09:20.3]} 9. e3 {[%clk 0:08:35.2]} 9... b5 {[%clk 0:09:06.1]} 10.
Qe2 {[%clk 0:08:16.2]} 10... bxc4 {[%clk 0:08:41.8]} 11. bxc4 {[%clk 0:08:18.1]}
11... Na5 {[%clk 0:08:19.8]} 12. Ba3 {[%clk 0:07:56.4]} 12... c6 {[%clk
0:07:43.8]} 13. Rab1 {[%clk 0:07:39.8]} 13... Bg4 {[%clk 0:06:55.2]} 14. Rxb8
{[%clk 0:07:36]} 14... Qxb8 {[%clk 0:06:55.7]} 15. h3 {[%clk 0:07:37.9]} 15...
Be6 {[%clk 0:06:27.6]} 16. Nd2 {[%clk 0:07:23.8]} 16... Nd7 {[%clk 0:06:03.8]}
17. Rb1 {[%clk 0:06:54.1]} 17... Qc7 {[%clk 0:06:01]} 18. Na4 {[%clk 0:06:17.2]}
18... f5 {[%clk 0:05:49.9]} 19. d5 {[%clk 0:06:04.2]} 19... Bf7 {[%clk 0:05:42]}
20. dxc6 {[%clk 0:06:03.5]} 20... Nxc6 {[%clk 0:05:40.8]} 21. c5 {[%clk
0:06:04]} 21... Nxc5 {[%clk 0:05:12]} 22. Nxc5 {[%clk 0:06:01.6]} 22... dxc5
{[%clk 0:05:13.1]} 23. Bxc5 {[%clk 0:05:33.4]} 23... a5 {[%clk 0:04:35.1]} 24.
Bb6 {[%clk 0:05:25.8]} 24... Qd7 {[%clk 0:04:18.5]} 25. Nb3 {[%clk 0:05:19.3]}
25... Rb8 {[%clk 0:04:04.4]} 26. Nc5 {[%clk 0:05:09.2]} 26... Qc8 {[%clk
0:04:02.8]} 27. Rb5 {[%clk 0:04:54.5]} 27... Ne5 {[%clk 0:03:45.6]} 28. Bxa5
{[%clk 0:04:53.7]} 28... Bc4 {[%clk 0:03:22.6]} 29. Rxb8 {[%clk 0:04:52]} 29...
Qxb8 {[%clk 0:03:23.7]} 30. Qc2 {[%clk 0:04:30]} 30... Qb5 {[%clk 0:03:13.8]}
31. Nb3 {[%clk 0:04:29.4]} 31... Bd5 {[%clk 0:02:38.6]} 32. e4 {[%clk
0:02:57.6]} 32... fxe4 {[%clk 0:02:04.9]} 33. Bxe4 {[%clk 0:02:59.5]} 33... Nf3+
{[%clk 0:01:38.6]} 34. Bxf3 {[%clk 0:02:57.3]} 34... Bxf3 {[%clk 0:01:39.8]} 35.
Nd2 {[%clk 0:02:22.1]} 35... Bb7 {[%clk 0:01:30.2]} 36. Qb3+ {[%clk 0:02:17.5]}
36... Qxb3 {[%clk 0:01:23.4]} 37. axb3 {[%clk 0:02:19.4]} 37... Kf7 {[%clk
0:01:21]} 38. Kf1 {[%clk 0:02:16.3]} 38... Ba6+ {[%clk 0:01:18.4]} 39. Nc4
{[%clk 0:02:17]} 39... Ke6 {[%clk 0:01:17.9]} 40. Ke2 {[%clk 0:02:18.3]} 40...
Kd5 {[%clk 0:01:19.1]} 41. Kd3 {[%clk 0:02:19.7]} 41... Bd4 {[%clk 0:00:52.1]}
42. f3 {[%clk 0:02:18.3]} 42... e5 {[%clk 0:00:47.9]} 43. g4 {[%clk 0:02:01.2]}
43... h5 {[%clk 0:00:44]} 44. Bd2 {[%clk 0:02:00.9]} 44... hxg4 {[%clk
0:00:39.6]} 45. hxg4 {[%clk 0:02:02.8]} 45... Bb5 {[%clk 0:00:31.2]} 46. Be3
{[%clk 0:01:56.4]} 46... Ba1 {[%clk 0:00:26.2]} 47. Ba7 {[%clk 0:01:47]} 47...
Ba6 {[%clk 0:00:25.3]} 48. Be3 {[%clk 0:01:07.9]} 48... Bb5 {[%clk 0:00:24.3]}
49. Bf2 {[%clk 0:01:09.4]} 49... Ba6 {[%clk 0:00:24.9]} 50. Be1 {[%clk 0:01:11]}
50... Bd4 {[%clk 0:00:25.1]} 51. Bc3 {[%clk 0:01:09]} 51... Bc5 {[%clk
0:00:20.4]} 52. Bb2 {[%clk 0:01:08.5]} 52... Bb5 {[%clk 0:00:20.8]} 53. Bc1
{[%clk 0:01:09.3]} 53... Bd4 {[%clk 0:00:20.4]} 54. Ba3 {[%clk 0:01:09.9]} 54...
Ba6 {[%clk 0:00:20.4]} 55. Bb4 {[%clk 0:01:11.1]} 55... Bb5 {[%clk 0:00:19.6]}
56. Bc3 {[%clk 0:01:11.8]} 56... Bc5 {[%clk 0:00:20.9]} 57. Bd2 {[%clk
0:00:43.5]} 57... Bd4 {[%clk 0:00:22.1]} 58. Be3 {[%clk 0:00:36.6]} 58... Ba1
{[%clk 0:00:22.6]} 1/2-1/2

[Event "GrandPrix_30.05"]
[Site "Chess.com"]
[Date "2020.05.30"]
[Round "1"]
[White "Sakkcapak"]
[Black "MilanovicDan"]
[Result "1-0"]
[WhiteElo "2150"]
[BlackElo "2357"]
[TimeControl "600+2"]
[EndTime "8:23:34 PDT"]
[Termination "Sakkcapak won by resignation"]

1. c4 {[%clk 0:10:01.9]} 1... c5 {[%clk 0:09:56]} 2. g3 {[%clk 0:10:01.1]} 2...
g6 {[%clk 0:09:52.8]} 3. Bg2 {[%clk 0:10:01.5]} 3... Bg7 {[%clk 0:09:53.9]} 4.
Nc3 {[%clk 0:10:02.2]} 4... Nc6 {[%clk 0:09:54.4]} 5. a3 {[%clk 0:10:02.3]} 5...
d6 {[%clk 0:09:50]} 6. Rb1 {[%clk 0:09:57.8]} 6... Be6 {[%clk 0:09:12]} 7. d3
{[%clk 0:09:49.5]} 7... Rc8 {[%clk 0:08:27.1]} 8. Bd2 {[%clk 0:09:35.3]} 8...
Nf6 {[%clk 0:08:17]} 9. Nf3 {[%clk 0:09:27.4]} 9... O-O {[%clk 0:08:14.1]} 10.
O-O {[%clk 0:09:27.6]} 10... h6 {[%clk 0:07:55.4]} 11. b4 {[%clk 0:08:38.1]}
11... b6 {[%clk 0:07:55.3]} 12. Qa4 {[%clk 0:08:11.1]} 12... Qd7 {[%clk
0:07:50.4]} 13. Rfc1 {[%clk 0:07:59.6]} 13... Bg4 {[%clk 0:07:11.8]} 14. Be3
{[%clk 0:06:33.1]} 14... Bxf3 {[%clk 0:05:41.1]} 15. Bxf3 {[%clk 0:06:28.5]}
15... Nd4 {[%clk 0:05:41]} 16. Bxd4 {[%clk 0:06:17.2]} 16... Qxa4 {[%clk
0:05:38.7]} 17. Nxa4 {[%clk 0:06:18.1]} 17... cxd4 {[%clk 0:05:39.7]} 18. c5
{[%clk 0:04:55.6]} 18... b5 {[%clk 0:05:38.3]} 19. Nb2 {[%clk 0:04:52.7]} 19...
d5 {[%clk 0:03:52.2]} 20. a4 {[%clk 0:04:21.8]} 20... a6 {[%clk 0:03:42.8]} 21.
Ra1 {[%clk 0:04:17.3]} 21... Rc6 {[%clk 0:03:21.3]} 22. axb5 {[%clk 0:04:00.4]}
22... axb5 {[%clk 0:03:23.2]} 23. Ra7 {[%clk 0:04:00]} 23... e5 {[%clk
0:01:35.6]} 24. Rb7 {[%clk 0:03:43.6]} 24... Ra8 {[%clk 0:01:35.1]} 25. Rxb5
{[%clk 0:03:05.2]} 25... Bf8 {[%clk 0:01:35.2]} 26. h3 {[%clk 0:01:49.9]} 26...
Kg7 {[%clk 0:01:24.7]} 27. Rb7 {[%clk 0:01:44.7]} 27... Ra2 {[%clk 0:00:57.6]}
28. Rc2 {[%clk 0:01:36.9]} 28... Ra8 {[%clk 0:00:36.1]} 29. Bg2 {[%clk
0:01:32.3]} 29... Kg8 {[%clk 0:00:25.5]} 30. Nc4 {[%clk 0:01:25.6]} 30... Bxc5
{[%clk 0:00:15.3]} 31. Nxe5 {[%clk 0:01:02.3]} 31... Rb6 {[%clk 0:00:15.9]} 32.
Rxb6 {[%clk 0:00:49.9]} 32... Bxb6 {[%clk 0:00:16.6]} 33. Rc6 {[%clk 0:00:51.4]}
33... Bd8 {[%clk 0:00:16.5]} 34. Rc2 {[%clk 0:00:31.1]} 34... Kf8 {[%clk
0:00:13.5]} 35. Rb2 {[%clk 0:00:26.4]} 35... Bb6 {[%clk 0:00:12.2]} 36. Kh2
{[%clk 0:00:20.5]} 36... Ke7 {[%clk 0:00:13.2]} 37. b5 {[%clk 0:00:17.9]} 37...
Kd6 {[%clk 0:00:13.7]} 38. Nxf7+ {[%clk 0:00:18.6]} 38... Ke6 {[%clk 0:00:14.3]}
39. Nxh6 {[%clk 0:00:13.6]} 39... Rh8 {[%clk 0:00:15.6]} 40. Rc2 {[%clk
0:00:13.8]} 40... Ke7 {[%clk 0:00:12.7]} 41. Rc6 {[%clk 0:00:14.4]} 41... Ba5
{[%clk 0:00:12.9]} 42. Ra6 {[%clk 0:00:12.8]} 42... Bc7 {[%clk 0:00:10.3]} 43.
Ra7 {[%clk 0:00:12.6]} 43... Ne8 {[%clk 0:00:09.2]} 44. Ng4 {[%clk 0:00:12.9]}
44... Ke6 {[%clk 0:00:08.4]} 45. Ra6+ {[%clk 0:00:13.2]} 45... Bd6 {[%clk
0:00:08.5]} 46. b6 {[%clk 0:00:13.6]} 46... Rh7 {[%clk 0:00:08.6]} 47. Ra7
{[%clk 0:00:13.3]} 47... Rh8 {[%clk 0:00:09.8]} 48. Ra8 {[%clk 0:00:13.1]} 48...
Kd7 {[%clk 0:00:05.2]} 49. Nf6+ {[%clk 0:00:11.9]} 1-0

[Event "GrandPrix_30.05"]
[Site "Chess.com"]
[Date "2020.05.30"]
[Round "1"]
[White "zuagroasta"]
[Black "Sunerorlater"]
[Result "1-0"]
[WhiteElo "1846"]
[BlackElo "2170"]
[TimeControl "600+2"]
[EndTime "8:23:40 PDT"]
[Termination "zuagroasta won by resignation"]

1. d4 {[%clk 0:09:56.9]} 1... Nf6 {[%clk 0:09:54.7]} 2. c4 {[%clk 0:09:53.4]}
2... e6 {[%clk 0:09:54.3]} 3. Nc3 {[%clk 0:09:53.6]} 3... Bb4 {[%clk 0:09:54.2]}
4. e3 {[%clk 0:09:52.1]} 4... O-O {[%clk 0:09:53.2]} 5. Ne2 {[%clk 0:09:46.5]}
5... Re8 {[%clk 0:09:49.6]} 6. a3 {[%clk 0:09:33.7]} 6... Bf8 {[%clk 0:09:49.4]}
7. d5 {[%clk 0:08:15.1]} 7... exd5 {[%clk 0:09:20.6]} 8. cxd5 {[%clk 0:08:15.1]}
8... c6 {[%clk 0:09:19.6]} 9. g3 {[%clk 0:08:10.6]} 9... d6 {[%clk 0:08:11.1]}
10. Bg2 {[%clk 0:08:07.3]} 10... g6 {[%clk 0:07:57.7]} 11. O-O {[%clk
0:07:42.2]} 11... Bg7 {[%clk 0:07:57.5]} 12. dxc6 {[%clk 0:05:45.8]} 12... bxc6
{[%clk 0:07:32.2]} 13. e4 {[%clk 0:05:44.3]} 13... Ng4 {[%clk 0:07:01.4]} 14. h3
{[%clk 0:04:49.6]} 14... Ne5 {[%clk 0:06:59.5]} 15. Qc2 {[%clk 0:04:49.3]} 15...
Nbd7 {[%clk 0:06:32.2]} 16. Rd1 {[%clk 0:04:30.4]} 16... Nb6 {[%clk 0:06:10.2]}
17. f4 {[%clk 0:04:19.4]} 17... Nec4 {[%clk 0:06:05.9]} 18. b3 {[%clk
0:04:15.6]} 18... Na5 {[%clk 0:06:05.4]} 19. Rb1 {[%clk 0:04:04.5]} 19... Rb8
{[%clk 0:05:09.9]} 20. Kh2 {[%clk 0:03:48]} 20... Qe7 {[%clk 0:05:01.5]} 21. a4
{[%clk 0:03:28.9]} 21... a6 {[%clk 0:04:12.5]} 22. b4 {[%clk 0:02:38.8]} 22...
Nb7 {[%clk 0:03:47.5]} 23. a5 {[%clk 0:02:25.4]} 23... Nd7 {[%clk 0:03:13.4]}
24. Nd4 {[%clk 0:02:09.9]} 24... Nd8 {[%clk 0:03:09.7]} 25. Nxc6 {[%clk
0:02:08]} 25... Nxc6 {[%clk 0:03:01.4]} 26. Nd5 {[%clk 0:02:08.5]} 26... Qd8
{[%clk 0:03:00.4]} 27. Qxc6 {[%clk 0:02:08.2]} 27... Bb7 {[%clk 0:02:40.3]} 28.
Qxd6 {[%clk 0:01:27.7]} 28... Re6 {[%clk 0:02:39.7]} 29. Qc7 {[%clk 0:01:22.1]}
29... Qe8 {[%clk 0:02:30.7]} 30. e5 {[%clk 0:01:15.3]} 30... Nxe5 {[%clk
0:02:19.7]} 31. fxe5 {[%clk 0:01:02.5]} 31... Bxe5 {[%clk 0:02:20.3]} 32. Qxe5
{[%clk 0:01:02.8]} 32... Rxe5 {[%clk 0:02:11.9]} 33. Nf6+ {[%clk 0:01:03.2]}
33... Kh8 {[%clk 0:01:58.8]} 34. Nxe8 {[%clk 0:01:03.1]} 34... Rexe8 {[%clk
0:01:53.1]} 35. Bb2+ {[%clk 0:00:57.5]} 35... Kg8 {[%clk 0:01:53.2]} 36. Bxb7
{[%clk 0:00:56.6]} 36... Rxb7 {[%clk 0:01:54.1]} 37. Bc3 {[%clk 0:00:55.3]}
37... g5 {[%clk 0:01:42.4]} 38. Rd5 {[%clk 0:00:46.3]} 38... h6 {[%clk
0:01:41.5]} 39. Rbd1 {[%clk 0:00:45]} 39... Re2+ {[%clk 0:01:32.9]} 40. Kg1
{[%clk 0:00:44.9]} 40... Re3 {[%clk 0:01:25.9]} 41. R1d3 {[%clk 0:00:44.4]}
41... Rxd3 {[%clk 0:01:26.2]} 42. Rxd3 {[%clk 0:00:44.5]} 42... Kh7 {[%clk
0:01:23.2]} 43. Kf2 {[%clk 0:00:44.7]} 43... Rc7 {[%clk 0:01:19.3]} 44. Ke3
{[%clk 0:00:42.2]} 44... Rc6 {[%clk 0:01:17.3]} 45. Kd4 {[%clk 0:00:38.6]} 45...
Kg6 {[%clk 0:01:17.3]} 46. Kd5 {[%clk 0:00:39.3]} 46... Rc8 {[%clk 0:01:15.7]}
47. Rf3 {[%clk 0:00:36.7]} 47... f5 {[%clk 0:01:16.2]} 48. Bd4 {[%clk
0:00:36.1]} 48... h5 {[%clk 0:01:13.4]} 49. b5 {[%clk 0:00:32.5]} 49... axb5
{[%clk 0:01:11.5]} 50. a6 {[%clk 0:00:33.1]} 50... Rd8+ {[%clk 0:00:55.8]} 51.
Kc5 {[%clk 0:00:31.3]} 51... b4 {[%clk 0:00:56.2]} 52. a7 {[%clk 0:00:28.7]}
52... h4 {[%clk 0:00:41.8]} 53. gxh4 {[%clk 0:00:28.1]} 53... gxh4 {[%clk
0:00:42.6]} 54. Be5 {[%clk 0:00:27.7]} 1-0